Cogmind - Beta 16 @@@ ROGUE MODE // 2026.01.10 @ 10:30:56 Player: ae Result: Destroyed by S-27 Virus with Autogun Performance ------------- Evolutions (4) 2000 Regions Visited (7) 1400 Robots Destroyed (61) 305 Value Destroyed (2912) 2912 Prototype IDs (1) 20 Alien Tech Used (0) 0 Bonus (884) 884 TOTAL SCORE: 7521 Bonus ------- High Alert Combat Kills 279 Follower Combat Kills 37 Entered Garrisons 200 Used RIF Installer 500 Friendly Fire -132 Cogmind --------- Core Integrity 0/850 Matter 39/300 Energy 97/100 System Corruption 0% Temperature Cool (2) Movement Walking (120) Location -6/Factory Parts ------- > --- POWER (1) -------- (None) > --- PROPULSION (4) --- Flexi-carbon Leg > --- UTILITY (8) ------ Improved Signal Interpreter Improved Melee Analysis Suite Target Analyzer Relay Coupler [Grunt] (1) > --- WEAPON (2) ------- (None) > --- INVENTORY (5) ---- Carbon-fiber Leg Heavy Laser Heavy Linear Accelerator Peak State ------------ > --- POWER ------------ Light Angular Momentum Engine > --- PROPULSION ------- Carbon-fiber Leg Carbon-fiber Leg Flexi-carbon Leg Advanced VSS Leg > --- UTILITY ---------- Advanced Heat Sink Advanced Heat Sink Large Storage Unit Improved Signal Interpreter Improved Launcher Guidance Computer Improved Launcher Guidance Computer Improved Launcher Guidance Computer Shock Absorption System > --- WEAPON ----------- Coil Gun Heavy Hammer > --- INVENTORY -------- Light Nuclear Core Improved Deuterium Engine Micro Nuclear Core Carbon-fiber Leg Carbon-fiber Leg Advanced VSS Leg Improved Sensor Array Relay Coupler [NC] Relay Coupler [Swarmer] Relay Coupler [Grunt] System Restoration Module Improved Trap Extractor Heavy Laser Plasma Rifle Remote Datajack [Rating: 71] Favorites ----------- Power Light Angular Momentum Engine Engine Light Angular Momentum Engine Power Core Micro Nuclear Core Propulsion Carbon-fiber Leg Treads Light Treads Leg Carbon-fiber Leg Wheel Wheel Utility Improved Signal Interpreter Device Advanced Heat Sink Storage Large Storage Unit Processor Improved Signal Interpreter Hackware Relay Coupler [NC] Protection Improved Medium Armor Plating Weapon Heavy Hammer Energy Gun Beam Rifle Ballistic Gun Precision Assault Rifle Ballistic Cannon Heavy Linear Accelerator Launcher Grenade Launcher Special Weapon Remote Datajack Impact Weapon Heavy Hammer Slashing Weapon Blade Saw Build | -11 -10 -10 -9 -7 -6 -6 -6 ------- Run | Yrd Mat Sub Rec Fac Fac Gar Fac Slots Evolved 8 | . . . . 6 2 . . Power . | . . . . . . . . Propulsion 2 | . . . . 2 . . . Utility 6 | . . . . 4 2 . . Weapon . | . . . . . . . . Parts Attached 94 | 7 . 3 5 17 4 41 17 Power 11 | 1 . . 1 3 . 4 2 Engine 6 | 1 . . 1 1 . 3 . Core 5 | . . . . 2 . 1 2 Reactor . | . . . . . . . . Propulsion 29 | 2 . . 2 4 2 14 5 Treads 3 | . . . 2 1 . . . Leg 21 | 2 . . . . . 14 5 Wheel 5 | . . . . 3 2 . . Hover . | . . . . . . . . Flight . | . . . . . . . . Utility 35 | 2 . 1 . 8 2 15 7 Device 18 | 1 . . . 5 . 8 4 Storage 3 | 1 . . . 1 . . 1 Processor 6 | . . . . 1 . 4 1 Hackware 2 | . . . . . . 1 1 Protection 6 | . . 1 . 1 2 2 . Artifact . | . . . . . . . . Weapon 19 | 2 . 2 2 2 . 8 3 Energy Gun 9 | 1 . 1 2 . . 5 . Energy Cannon . | . . . . . . . . Ballistic Gun 4 | 1 . . . 1 . 2 . Ballistic Cannon 1 | . . . . . . . 1 Launcher 1 | . . 1 . . . . . Special Weapon 1 | . . . . . . . 1 Impact Weapon 2 | . . . . 1 . . 1 Slashing Weapon 1 | . . . . . . 1 . Piercing Weapon . | . . . . . . . . Special Melee Weapon . | . . . . . . . . Unidentified Prototypes 1 | . . . . 1 . . . Parts Lost 49 | . . . 3 9 . 22 15 Power 7 | . . . . 2 . 3 2 Propulsion 18 | . . . 2 4 . 6 6 Utility 18 | . . . . 2 . 11 5 Weapon 6 | . . . 1 1 . 2 2 Highest Loss Streak 8 | . . . 2 5 . 6 8 To Critical Strikes 1 | . . . . . . . 1 Average Backups 11 | 5 7 8 7 8 14 13 15 Power 1 | . 1 1 1 2 3 2 1 Propulsion 2 | 3 5 5 4 . . 1 1 Utility 2 | . . . . 1 6 4 4 Weapon 4 | . 1 2 1 3 4 3 7 Tool/Special . | . . . . . . . . Unused Backups 12 | . . . . 1 . 3 8 Power 3 | . . . . . . 2 1 Propulsion . | . . . . . . . . Utility 3 | . . . . . . . 3 Weapon 6 | . . . . 1 . 1 4 Tool/Special . | . . . . . . . . Average Slot Usage (%) 93 | . 100 100 99 87 89 92 95 Engine 6 | . 14 14 14 5 . 3 3 Core 1 | . . . . 1 6 2 2 Treads 4 | . . . 7 15 13 . . Leg 17 | . 28 28 19 . . 21 25 Wheel 3 | . . . . 11 6 3 . Device 15 | . 14 13 . 21 20 22 12 Storage 7 | . 14 14 14 7 6 6 5 Processor 9 | . . . . 4 6 10 20 Hackware 3 | . . . . . . . 12 Protection 4 | . . . 14 1 17 4 . Energy Gun 7 | . 14 12 23 4 6 4 . Ballistic Gun 3 | . 14 14 3 5 6 3 . Impact Weapon 3 | . . . . 3 . 3 4 Peak Build Rating 71 | 7 7 8 9 34 44 71 70 Average Rating 41 | 5 7 7 8 25 41 55 63 On Entrance 21 | . 7 7 8 9 34 44 63 Avg Prop Armor Cover (%) 13 | . . . . 16 10 7 . Naked Turns . | . . . . . . . . Heaviest Build 116 | 14 14 17 19 36 50 64 116 Greatest Support 71 | 20 20 20 40 42 42 68 71 Greatest Overweight (x) 4 | . . . 1 1 4 4 1 Average Overweight (x) . | . . . . . 1 . . Largest Inventory Capacity 25 | 8 8 8 8 15 15 15 25 Average Capacity 14 | 6 8 8 8 10 15 15 21 Most Carried 22 | 7 8 8 8 15 15 15 22 Average Carried 12 | 5 7 8 7 8 14 14 17 Final Capacity 15 | 8 8 8 8 15 15 15 5 Final Carried 15 | 7 8 8 6 15 15 15 4 Class Distribution -------------------- 45% | Mutant 42% | Scavenger-Mutant 7% | Bothacker-Mutant 4% | Scavenger-Gladiator Dominant Class ---------------- Mutant | -10/Materials Mutant | -10/Subcaves Mutant | -9/Recycling Mutant | -7/Factory Mutant | -6/Factory Scavenger-Mutant | -6/Garrison Scavenger-Mutant | -6/Factory Resources | -11 -10 -10 -9 -7 -6 -6 -6 ----------- Run | Yrd Mat Sub Rec Fac Fac Gar Fac Matter Collected 1649 | 280 . 85 81 200 44 578 381 Remotely 128 | . . . . 117 11 . . Salvage Created 2448 | 92 . 91 219 204 11 1212 619 Parts 111 | 5 . 10 9 12 4 50 21 Haulers Intercepted 1 | . . . . . . . 1 Recyclers Shooed 3 | 2 . . 1 . . . . Parts Field Recycled . | . . . . . . . . Retrieved Matter . | . . . . . . . . Parts Self-Destructed 6 | . . 6 . . . . . Prevented . | . . . . . . . . Parts Restored . | . . . . . . . . Kills | -11 -10 -10 -9 -7 -6 -6 -6 ------- Run | Yrd Mat Sub Rec Fac Fac Gar Fac Combat Hostiles Destroyed 52 | . . 4 4 4 . 28 12 Melee 6 | . . . . . . 3 3 Guns 28 | . . 2 3 2 . 21 . Cannons 5 | . . . . . . . 5 AOE 4 | . . 2 . 2 . . . Classes Destroyed 15 | 2 . 4 . 2 1 2 4 Worker 1 | . . . . . 1 . . Builder 2 | . . . . . . . 2 Tunneler 1 | 1 . . . . . . . Hauler 1 | . . . . . . . 1 Recycler 1 | 1 . . . . . . . Turret 1 | . . 1 . . . . . Watcher 1 | . . . . . . . 1 Swarmer 10 | . . 3 . . . 7 . Cutter 2 | . . . . . . 2 . Grunt 22 | . . . . 2 . 13 7 Duelist 1 | . . . . . . 1 . Sentry 9 | . . 1 4 1 . 3 . Hunter 3 | . . . . . . . 3 Programmer 5 | . . . . 1 . 2 2 Federalist 1 | . . 1 . . . . . Best Kill Streak 9 | 1 . 5 1 2 1 9 3 Combat Bots Only 9 | . . 2 1 2 . 9 2 Max Kills in Single Turn 2 | 1 . 2 1 2 1 2 1 Gunslinging . | . . . . . . . . Exploded 2 | . . 1 . 2 . . . Melee 1 | . . . . . . 1 1 Uniques/NPCs Destroyed . | . . . . . . . . Combat | -11 -10 -10 -9 -7 -6 -6 -6 -------- Run | Yrd Mat Sub Rec Fac Fac Gar Fac Hostile Shots Fired 785 | . . 58 28 140 . 402 157 Missed 261 | . . 21 9 47 . 139 45 Hits 524 | . . 37 19 93 . 263 112 Melee 4 | . . . . . . 4 . Projectile 520 | . . 37 19 93 . 259 112 Critical Strikes 13 | . . 1 . 3 . 6 3 Actively Blocked 2 | . . . . 1 . 1 . Damage Taken 7093 | . . 311 277 1049 . 3496 1960 Core 1052 | . . 53 . 137 . 445 417 Absorbed by Shields . | . . . . . . . . Redirected to Shielding 51 | . . . . 12 . 39 . Regen/Repaired (Parts) 93 | . . . . . . . 93 Core Remaining (%) 86 | 100 . . 78 80 . . . Volleys Fired 171 | 10 . 17 14 20 1 64 45 Largest 2 | 2 . 2 2 2 2 2 1 Hottest 162 | 70 . 70 96 96 68 162 81 Shots Fired 284 | 20 . 25 27 39 2 126 45 Gun 230 | 20 . 16 27 38 2 126 1 Cannon 32 | . . . . . . . 32 Launcher 10 | . . 9 . 1 . . . Special 12 | . . . . . . . 12 Kinetic 97 | 10 . 8 1 10 1 35 32 Thermal 165 | 10 . 8 26 28 1 91 1 Explosive 10 | . . 9 . 1 . . . Electromagnetic . | . . . . . . . . Robot Hit Streak 30 | 7 . 9 28 30 6 12 9 Robot Miss Streak 5 | 2 . 1 . 2 . 5 3 Penetration Max . | . . . . . . . . Secondary Targets 4 | . . . . . . 4 . Max Gunslinging Chain 1 | . . . . . . 1 . Shots Hit Robots 262 | 14 . 10 24 34 1 129 50 Core Hits 122 | 3 . 12 9 9 1 75 13 Critical Kills 3 | . . . . . . 1 2 Critical Parts Destroyed 7 | . . . . . . 4 3 Critical Strikes 20 | . . 2 1 . . 7 10 Burn 5 | . . 2 1 . . 2 . Smash 10 | . . . . . . 5 5 Sever 5 | . . . . . . . 5 Melee Attacks 125 | . . . . 6 . 61 58 Impact 109 | . . . . 6 . 59 44 Slashing 16 | . . . . . . 2 14 Piercing . | . . . . . . . . Sneak Attacks 6 | . . . . . . 1 5 Combat Hostiles 1 | . . . . . . . 1 Follow-up Attacks 6 | . . . . . . . 6 Damage Inflicted 6890 | 141 9 402 335 608 11 3081 2303 Guns 3035 | 141 . 108 319 440 11 2016 . Cannons 847 | . . . . . . . 847 Explosions 536 | . . 294 . 77 . . 165 Melee 2442 | . . . . 91 . 1065 1286 Ramming 30 | . 9 . 16 . . . 5 Kinetic 1746 | 55 . 33 6 188 . 617 847 Thermal 2301 | 86 . 75 313 252 11 1399 165 Explosive 371 | . . 294 . 77 . . . Electromagnetic . | . . . . . . . . Impact 2213 | . . . . 91 . 1065 1057 Slashing 229 | . . . . . . . 229 Piercing . | . . . . . . . . Highest Corruption 1 | . . . . 1 . . 1 Average Corruption 1 | . . . . 1 . . 1 Corruption Purged 1 | . . . . . . . 1 Corruption Blocked . | . . . . . . . . Overload Shots . | . . . . . . . . Overflow Damage 698 | . . 16 . 11 . 203 468 Projectiles 49 | . . . . . . . 49 Explosions 96 | . . 16 . 11 . . 69 Melee 553 | . . . . . . 203 350 Knockbacks 12 | . . . . . . 1 11 Impact 6 | . . . . . . 1 5 Kinetic 5 | . . . . . . . 5 Secondary 1 | . . . . . . . 1 Self-Inflicted Damage 10 | . . . . 10 . . . Shots 1 | . . . . 1 . . . Rammed 3 | . . . 3 . . . . Targets Rammed 8 | . 1 . 5 . . . 2 Kicked 5 | . 1 . 2 . . . 2 Crushed . | . . . . . . . . Highest Temperature 321 | 70 . 32 210 321 . 52 63 Average Temperature 62 | 32 . 18 91 147 . 19 19 Received Heat Transfer 2115 | . . 177 90 441 . 996 411 Siege Activations . | . . . . . . . . Martial Activations . | . . . . . . . . Shielding Activations . | . . . . . . . . Robots Disrupted . | . . . . . . . . Combat Hostiles . | . . . . . . . . Robots Corrupted 9 | . . . . . . 4 5 Combat Hostiles 8 | . . . . . . 4 4 Parts Fried 10 | . . . . . . 2 8 Impact Corruptions 16 | . . . . . . 6 10 Robots Melted 1 | . . . 1 . . . . Combat Hostiles 1 | . . . 1 . . . . Parts Melted 8 | . . 1 2 1 . 4 . Heat Transferred 4846 | 259 . 370 781 597 25 2664 150 Parts Sabotaged . | . . . . . . . . Parts Stolen . | . . . . . . . . Parts Stripped . | . . . . . . . . Power Chain Reactions . | . . . . . . . . Alert | -11 -10 -10 -9 -7 -6 -6 -6 ------- Run | Yrd Mat Sub Rec Fac Fac Gar Fac Maximum Alert Level 3 | . . . . . . 3 2 Low Security (%) 44 | 100 100 . 100 100 100 8 . Level 1 22 | . . . . . . 21 56 Level 2 25 | . . . . . . 44 43 Level 3 7 | . . . . . . 26 . Level 4 . | . . . . . . . . Level 5 . | . . . . . . . . High Security . | . . . . . . . . Max Security . | . . . . . . . . Peak Influence 969 | 5 . . 51 45 24 969 509 Initial 508 | . . . 43 . 8 16 508 Average 261 | . . . 6 5 2 527 376 Influence Increases 2174 | 10 . 130 89 120 29 1193 603 Destroy 0b10 Robot/C 1080 | . . 100 80 80 . 580 240 Destroy 0b10 Robot/NC 30 | 10 . . . . 5 . 15 Destroy Leader 124 | . . . . 20 . 30 74 Allied During Kill 4 | . . . . . . 4 . Successful Hack 96 | . . . 8 . 24 14 50 Disable Machine 105 | . . . . 15 . 15 75 Anti-Garrison Action 200 | . . . . . . 200 . Destroy Structure 190 | . . . 1 5 . 125 59 Partial Spotted 30 | . . . . . . . 30 Lose Combat Pursuer 315 | . . 30 . . . 225 60 Influence Decreases 1747 | 10 . 40 179 102 23 248 1145 Entered New Map 526 | . . . 47 . 10 8 461 Time Decay 791 | 10 . 40 122 92 13 . 514 Lost Part 390 | . . . 10 10 . 220 150 Lost Ally 40 | . . . . . . 20 20 Squads Dispatched 13 | . . . . 3 . . 10 Investigation 1 | . . . . . . . 1 Extermination 4 | . . . . 2 . . 2 Reinforcement 5 | . . . . 1 . . 4 Assault . | . . . . . . . . Garrison 3 | . . . . . . . 3 Intercept . | . . . . . . . . Searches Triggered . | . . . . . . . . Construction Impeded 2 | . . . . . . . 2 Haulers Reinforced 1 | . . . . . . . 1 Active Scanning Responses . | . . . . . . . . Cargo Convoy Interrupts . | . . . . . . . . Stealth | -11 -10 -10 -9 -7 -6 -6 -6 --------- Run | Yrd Mat Sub Rec Fac Fac Gar Fac Distress Signals 3 | . . . 1 1 . 1 . Communications Jammed . | . . . . . . . . Distress Signals . | . . . . . . . . Times Spotted 82 | . 1 9 4 8 . 36 24 Peak Tracking Total 11 | . 1 8 2 2 . 11 5 Tactical Retreats 11 | . . 2 . . . 8 1 Traps | -11 -10 -10 -9 -7 -6 -6 -6 ------- Run | Yrd Mat Sub Rec Fac Fac Gar Fac Traps Triggered 2 | . . . . 1 . 1 . Indirectly . | . . . . . . . . Trap Hack Attempts . | . . . . . . . . Triggered . | . . . . . . . . Disarmed . | . . . . . . . . Reprogrammed . | . . . . . . . . Reused . | . . . . . . . . Traps Extracted . | . . . . . . . . Installed . | . . . . . . . . Triggered . | . . . . . . . . Machines | -11 -10 -10 -9 -7 -6 -6 -6 ---------- Run | Yrd Mat Sub Rec Fac Fac Gar Fac Machines Disabled 12 | . . 3 . 1 . 3 5 Max in Single Turn 3 | . . 2 . 1 . 1 3 Garrison Access 1 | . . . . . . . 1 Garrison Relay 2 | . . . . . . 2 . Machines Repaired . | . . . . . . . . Machines Dismantled . | . . . . . . . . Machines Sabotaged . | . . . . . . . . Overloaded Fab Kills . | . . . . . . . . Hacking | -11 -10 -10 -9 -7 -6 -6 -6 --------- Run | Yrd Mat Sub Rec Fac Fac Gar Fac Machines Accessed 14 | . . . 4 . 1 1 8 Terminals 5 | . . . 2 . . 1 2 Fabricators . | . . . . . . . . Repair Stations 2 | . . . . . . . 2 Recycling Units 3 | . . . 2 . . . 1 Scanalyzers 1 | . . . . . . . 1 Garrison Access 3 | . . . . . 1 . 2 Total Hacks 25 | . . . 7 . 1 2 15 Successful 13 | . . . 6 . 1 1 5 Failed 11 | . . . . . . 1 10 Catastrophic 2 | . . . . . . . 2 Database Lockouts 1 | . . . 1 . . . . Manual 7 | . . . 7 . . . . Terminals 13 | . . . 5 . . 2 6 Fabricators . | . . . . . . . . Repair Stations 4 | . . . . . . . 4 Recycling Units 4 | . . . 2 . . . 2 Scanalyzers 1 | . . . . . . . 1 Garrison Access 3 | . . . . . 1 . 2 Terminal Hacks 5 | . . . 4 . . 1 . Robot Analysis 2 | . . . 2 . . . . Branch Access Points 1 | . . . 1 . . . . Emergency Access Points 1 | . . . . . . 1 . Zone Layout 1 | . . . 1 . . . . Fabricator Hacks . | . . . . . . . . Repair Station Hacks 3 | . . . . . . . 3 Scan Component 2 | . . . . . . . 2 Repair 1 | . . . . . . . 1 Recycling Unit Hacks 2 | . . . 2 . . . . Report Inventory 2 | . . . 2 . . . . Scanalyzer . | . . . . . . . . Garrison Access Hacks 3 | . . . . . 1 . 2 Unlock Access 2 | . . . . . 1 . 1 Seal Access 1 | . . . . . . . 1 Unauthorized Hacks . | . . . . . . . . Terminals . | . . . . . . . . Fabricators . | . . . . . . . . Repair Stations . | . . . . . . . . Recycling Units . | . . . . . . . . Scanalyzers . | . . . . . . . . Garrison Access . | . . . . . . . . Data Cores Recovered . | . . . . . . . . Used . | . . . . . . . . Hacking Detections 9 | . . . 1 . 1 1 6 Full Trace Events 1 | . . . . . . . 1 Feedback Events 1 | . . . . . . . 1 Corruption 1 | . . . . . . . 1 Feedback Blocked . | . . . . . . . . Robot Schematics Acquired . | . . . . . . . . Robots Built . | . . . . . . . . Authchips . | . . . . . . . . Time . | . . . . . . . . Total Robot Build Rating . | . . . . . . . . Part Schematics Acquired . | . . . . . . . . Parts Built . | . . . . . . . . Authchips . | . . . . . . . . Time . | . . . . . . . . Total Part Build Rating . | . . . . . . . . Part Studies Acquired . | . . . . . . . . Parts Repaired 1 | . . . . . . . 1 Time 19 | . . . . . . . 19 Parts Recycled . | . . . . . . . . Recycled Matter . | . . . . . . . . Retrieved Matter . | . . . . . . . . Retrieved Components . | . . . . . . . . Parts Scanalyzed . | . . . . . . . . Part Schematics Acquired . | . . . . . . . . Parts Damaged . | . . . . . . . . Bothacking | -11 -10 -10 -9 -7 -6 -6 -6 ------------ Run | Yrd Mat Sub Rec Fac Fac Gar Fac Used RIF Installer 1 | . . . . . . 1 . Robots Hacked 7 | . . . . . . . 7 Non-combat 3 | . . . . . . . 3 Combat 4 | . . . . . . . 4 Robot Hacks Applied 7 | . . . . . . . 7 parse_system 1 | . . . . . . . 1 map_walls 1 | . . . . . . . 1 disrupt_area 1 | . . . . . . . 1 amplify_resonance 1 | . . . . . . . 1 disable_weapons 1 | . . . . . . . 1 formatsys_low 1 | . . . . . . . 1 formatsys_high 1 | . . . . . . . 1 Relay Couplers Released 9 | . . . . . . 9 . Machine Destruction 9 | . . . . . . 9 . Attached 2 | . . . . . . 1 1 Fabnet Peak Effective % . | . . . . . . . . Robots Rewired . | . . . . . . . . Allies Hacked . | . . . . . . . . Hacks Repelled . | . . . . . . . . Allies | -11 -10 -10 -9 -7 -6 -6 -6 -------- Run | Yrd Mat Sub Rec Fac Fac Gar Fac Total Allies 3 | . . . . . . 1 2 Largest Group 1 | . . . . . . 1 1 Highest-Rated Group 95 | . . . . . . 95 47 Highest-Rated Ally 95 | . . . . . . 95 47 Total Orders . | . . . . . . . . Ally Attacks 7 | . . . . . . 5 2 Total Damage 436 | . . . . . . 359 77 Kills 1 | . . . . . . 1 . Allies Corrupted . | . . . . . . . . Allies Melted . | . . . . . . . . Intel | -11 -10 -10 -9 -7 -6 -6 -6 ------- Run | Yrd Mat Sub Rec Fac Fac Gar Fac Active Infowar (turns) 2658 | 52 93 146 . 632 148 295 1292 Sensors 2367 | . . . . 632 148 295 1292 Seismic 291 | 52 93 146 . . . . . Robot Analysis Total 2 | . . . 2 . . . . Derelict Logs Recovered . | . . . . . . . . Drone Launches . | . . . . . . . . Drone Recoveries . | . . . . . . . . Exploration | -11 -10 -10 -9 -7 -6 -6 -6 ------------- Run | Yrd Mat Sub Rec Fac Fac Gar Fac Turns Passed 5004 | 110 93 164 801 902 148 1368 1418 Spaces Moved 2563 | 53 76 92 526 447 99 567 703 Core 6 | 6 . . . . . . . Treads 272 | . . . 142 97 33 . . Legs 1818 | 47 76 92 384 . . 516 703 Wheels 467 | . . . . 350 66 51 . Hover . | . . . . . . . . Flight . | . . . . . . . . Fastest Speed 50 | 50 120 120 120 80 110 110 105 Average Speed 129 | 112 120 120 131 100 139 129 150 Slowest Speed 330 | 120 120 120 190 152 232 330 190 Overloaded Moves . | . . . . . . . . Propulsion Burnouts . | . . . . . . . . Robots Hopped . | . . . . . . . . Potential Cave-ins . | . . . . . . . . Cave-ins Triggered . | . . . . . . . . Exploration Rate (%) 25 | 4 22 12 64 11 3 71 20 Regions Visited 7 Branch Regions 2 Pre-discovered Areas . | . . . . . . . . Known Exits Taken 2 | . . . . 1 1 . . Unknown Exits Taken 4 | 1 1 1 1 . . . . Scrap Searched . | . . . . . . . . Spaces Dug 24 | . . . . . . . 24 Terrain Destroyed 87 | . . 18 . 4 . . 65 Melee 18 | . . . . . . . 18 Projectile 18 | . . . . . . . 18 AOE 51 | . . 18 . 4 . . 29 Terrain Rammed . | . . . . . . . . Walls Destroyed . | . . . . . . . . Machines Disabled . | . . . . . . . . Actions | -11 -10 -10 -9 -7 -6 -6 -6 --------- Run | Yrd Mat Sub Rec Fac Fac Gar Fac Total 3725 | 82 77 121 609 847 105 972 912 Wait 625 | 6 . 7 33 333 . 181 65 Move 2555 | 52 75 91 525 446 98 565 703 Hop . | . . . . . . . . Pick Up 57 | 7 1 . . 18 2 19 10 Fast Attach 37 | 7 . 1 . 6 2 17 4 Attach 36 | . . . 3 8 2 17 6 Detach 11 | . . . . 1 . 5 5 Swap 42 | . . 3 2 5 . 19 13 Drop 33 | . . 2 1 4 . 18 8 Fire 171 | 10 . 17 14 20 1 64 45 Melee 118 | . . . . 6 . 61 51 Ram . | . . . . . . . . Kick 5 | . 1 . 2 . . . 2 Crush 3 | . . . 3 . . . . Escape Stasis 5 | . . . . . . 5 . Rewire 27 | . . . 26 . . 1 . Trap . | . . . . . . . . Miscellaneous . | . . . . . . . . Route ------- -11/Scrapyard -10/Materials (discovered 2 exits: [*Min] / [*Sub]) -10/Subcaves -9/Recycling -7/Factory -6/Factory (discovered 2 exits: *Fac / Gar) -6/Garrison (discovered 2 exits: *Fac x2) -6/Factory (discovered 1 exit: Gar) History --------- Turn | Location | Event 16 | -11/Scrapyard | Discovered new exit (range 14) 111 | -11/Scrapyard | Entered Materials 112 | -10/Materials | Met a group of wandering Federalists 171 | -10/Materials | Discovered new exit (range 16) 200 | -10/Materials | Discovered new exit (range 5) 204 | -10/Materials | Entered Subcaves 204 | -10/Subcaves | Accompanied by 2 allies 205 | -10/Subcaves | Continued accompanying wandering Federalists (3) 296 | -10/Subcaves | Discovered new exit (range 16) 316 | -10/Subcaves | Build established: Mutant 340 | -10/Subcaves | Lost 3 allies 368 | -10/Subcaves | Entered Recycling 369 | -9/Recycling | Met a Zionite searching for Scraptown 738 | -9/Recycling | Discovered new exit (range 5) 1169 | -9/Recycling | Entered Factory 1169 | -7/Factory | Evolved 6 slots: Propulsion x2, Utility x4 1367 | -7/Factory | Lost 3 parts (1p1n1u) 1912 | -7/Factory | Discovered new exit (range 15) 1919 | -7/Factory | Lost 5 parts (1p3n1u) 1935 | -7/Factory | Identified exit to Factory 2071 | -7/Factory | Entered another Factory area 2071 | -6/Factory | Evolved 2 slots: Utility x2 2071 | -6/Factory | Discovered new exit (range 9) 2082 | -6/Factory | Identified exit to Factory 2212 | -6/Factory | Identified exit to Garrison 2219 | -6/Factory | Entered Garrison 2408 | -6/Garrison | Destroyed 9 combat bots 2409 | -6/Garrison | Lost 6 parts (1n4u1w) 2531 | -6/Garrison | Triggered checkpoint 2542 | -6/Garrison | Build established: Scavenger-Mutant 2582 | -6/Garrison | Lost 3 parts (1n1u1w) 2628 | -6/Garrison | Garrison Relay disabled 2688 | -6/Garrison | Found embedded Infiltrators 2692 | -6/Garrison | Discovered new exit (range 12) 2716 | -6/Garrison | Identified exit to Factory 2769 | -6/Garrison | Triggered checkpoint 2993 | -6/Garrison | Triggered checkpoint 3105 | -6/Garrison | Triggered checkpoint 3233 | -6/Garrison | Lost 4 parts (1p1n2u) 3288 | -6/Garrison | Found Relay Coupler [Proto] 3322 | -6/Garrison | Garrison Relay disabled 3334 | -6/Garrison | Triggered checkpoint 3366 | -6/Garrison | Core integrity fell below 50% 3387 | -6/Garrison | Installed Relay Interface Framework 3393 | -6/Garrison | Lost 3 parts (1p1n1u) 3403 | -6/Garrison | Discovered exit to Factory (range 3) 3587 | -6/Garrison | Entered Factory 4321 | -6/Factory | Identified exit to Garrison 4387 | -6/Factory | Repaired Carbon-fiber Leg 4431 | -6/Factory | Garrison activated, responded to threat 4460 | -6/Factory | Lost 4 parts (1p1n1u1w) 4667 | -6/Factory | Core integrity fell below 20% 5005 | -6/Factory | Destroyed by S-27 Virus with Autogun Last Messages --------------- Dropped Huge Storage Unit. Hvy. Laser crushed and broken. Relay Coupler [Proto] crushed and broken. Adv. Sensor Array crushed and broken. Dropped Hvy. Linear Accelerator. Hvy. Linear Accelerator crushed and broken. Acquired Carbon-fiber Leg. Kicked G-67 Veteran. Kicked G-67 Veteran out of the way. G-50 Soldier destroyed. K-01 Serf collects debris. ALERT: Cargo convoy en route, clear transfer corridor. Lgt. Fission Core destroyed. K-01 Serf destroyed. Carbon-fiber Leg destroyed. Critical hit (Destroy). Carbon-fiber Leg destroyed. System Restoration Module destroyed. Relay Coupler [NC] destroyed. Map ----- +----------------------------------------------------+ | ?????????????????????????????????????"T########### | | ?????????????????????????????????????" | | ?????????????????????????????????????" % | | ?????????????????????????????????????" ! | | ?????????????????????????????????????""###+####### | | ?????????????????????????????????????""# = [! ##? | | ?????????????????????????????????????#"# ### | | ??????????????? ? ???????????????????### # | | ??????????????" ? "???????????????????## !! # # | | ????????????# " ? " #????????????????### # | | ????????????# " ? " #????????????????# # ### | | ????????????# " ? " #????????????????### + | | ????????????# " " " #????????????????# # # | | ????????????# " " " #????????????????# # ! + | | ????????????# " " " #????????????????### ### | | ??#######???# " " " #?????????????????## ! ## | | ??# ??# " " " #?????????????????## [ ##" | | ??# ???? ?##########????????##" % ##" | | ??# ???##+##?# #?????????#"F ##G | | ??# #### ### #?????????#"" ##" | | ??# + s #?????????#"" ##" | | ??# # ## ### #?????????# ## | | ??# # ### ##?# #?????????#######"## | | ??# ?# #?# #??# #????????????????### | | ??# ?# #?# #??# #?????????????????## | | ??##########+### #??# @ #?????????????????## | | ????????# # #??# #???????????######### | | ????????#""" # ########+#############?# | | ????????#""" + / #?# """" """ | | ????????#""" #######+## ### ]!!#???"""" """ | | ????????# #????? ## #?# !! #???"""" """ | | ????????# #????? ## #?# ! !! #?? """"!""" | | ????????########???? ## #?# #?# """"!""" | | ???????????????????? ## #?# #?# """"[""" | | ??????????????????? ## #?# #?# """"[""" | | ??????????????????? ## #?# #?# []=| !/[ | | ?????????????????? ## #######/##############+# | | ??????????????????""" ?# | | ????????????????? """ ?# % | | ????????????????? ?"" + ^ | | ????????????????????" ## *% % | | ????????????????????" ?# % % | | ????????????????????? ?# #####""##### T###### | | ?????????????????????##?# ????####???####????? | | ??????????????????????? ????????????????????? | | ?????????????????????? ????????????????????? | | ?????????????????????? ?????????????????????? | | ?????????????????????? ?????????????????????? | | ??????????????????????? ??????????????????????? | | ?????????????????????????????????????????????????? | +----------------------------------------------------+ Best States ------------- Heat Dissipation 103 Energy Generation 18 Energy Capacity 290 Matter Stores 300 Matter Capacity 300 Sight Range 16 Robot Scan Range 16 Terrain Scan Density 10 Armor Coverage 900 Resistance: EX 25 Propulsion Shielding 33 Evasion (%) 55 Melee Accuracy 6 Launcher Accuracy 90 Target Analysis 5 Recoil Reduction 2 Relay Coupler Types 2 Relay Coupler Value 42 Item Schematics ----------------- None Robot Schematics ------------------ None Fabricated ------------ Nothing Repaired ---------- Carbon-fiber Leg | 15% | -6/Factory Studied --------- None Alien Tech Used ----------------- None Achievements -------------- Assimilation Complete Error 47 Hammer Time Join The Dark Side Mindtrick That Tickles Challenges ------------ None Game ------ Seed ZioniteContainmentAutocannon Manual? 0 Play Time 01:01:05 Cumulative 48.2 hours Start 2026.01.08 @ 07:04:36 End 2026.01.10 @ 10:30:56 Sessions 3 Manual Loads 0 Difficulty Rogue Special Mode None Game No. 27 Rogue 23 Adventurer 4 Explorer 0 Win Type - Total 1 Types 1/0/0/0/0/0/0/0/0/0 Lore% 23 Gallery% 31 Achievement% 23 Wizard Run 0 Options --------- Layout 1 ASCII 0 Keyboard 1 Movement Vi Keybinds 0 Fullscreen 0 Font 20/SmallcapsGlow Map View 50x35 Zoom Use 0% Tactical HUD 0 Map Filters NONE Filters NONE Steam 1 RUN: 76aeb4c1-0bbf-4a24-bc9f-d1b8854bd03b